[Event "*** Titled Tuesday Blitz"]
[Site "Chess.com"]
[Date "2020.04.07"]
[Round "5"]
[White "zmeeed67"]
[Black "Olga_Zhuravleva"]
[Result "1-0"]
[WhiteElo "2377"]
[BlackElo "2221"]
[TimeControl "180+1"]
[EndTime "13:52:54 PDT"]
[Termination "zmeeed67 won by resignation"]

1. d4 {[%clk 0:03:00.9]} 1... g6 {[%clk 0:02:58.7]} 2. c4 {[%clk 0:02:59.1]}
2... Bg7 {[%clk 0:02:58.1]} 3. Nc3 {[%clk 0:02:59.5]} 3... d6 {[%clk 0:02:57.6]}
4. Nf3 {[%clk 0:02:59.1]} 4... Nc6 {[%clk 0:02:57.2]} 5. Bg5 {[%clk 0:02:59.2]}
5... h6 {[%clk 0:02:52.9]} 6. Bh4 {[%clk 0:02:58.9]} 6... Bg4 {[%clk 0:02:50.7]}
7. e3 {[%clk 0:02:57]} 7... Nf6 {[%clk 0:02:38.4]} 8. Be2 {[%clk 0:02:50.4]}
8... O-O {[%clk 0:02:36.8]} 9. h3 {[%clk 0:02:50.2]} 9... Bxf3 {[%clk
0:02:35.8]} 10. Bxf3 {[%clk 0:02:51.1]} 10... a6 {[%clk 0:02:36.1]} 11. d5
{[%clk 0:02:31.9]} 11... Ne5 {[%clk 0:02:34.7]} 12. Be2 {[%clk 0:02:31.8]} 12...
c5 {[%clk 0:02:29]} 13. O-O {[%clk 0:02:28.6]} 13... Qd7 {[%clk 0:02:24.6]} 14.
f4 {[%clk 0:02:25.2]} 14... g5 {[%clk 0:02:03.4]} 15. fxe5 {[%clk 0:02:24.8]}
15... gxh4 {[%clk 0:02:02.1]} 16. exf6 {[%clk 0:02:24.8]} 16... Bxf6 {[%clk
0:02:02.9]} 17. Bg4 {[%clk 0:02:20.6]} 17... Qc7 {[%clk 0:02:02]} 18. Bf5 {[%clk
0:02:01.2]} 18... Bg5 {[%clk 0:01:46.6]} 19. Bc2 {[%clk 0:01:57.4]} 19... e5
{[%clk 0:01:33.7]} 20. Qd3 {[%clk 0:01:46.4]} 20... f6 {[%clk 0:01:33.6]} 21.
Ne4 {[%clk 0:01:41.6]} 21... Rf7 {[%clk 0:01:28.3]} 22. Nxg5 {[%clk 0:01:40]}
22... hxg5 {[%clk 0:01:29.2]} 23. Qg6+ {[%clk 0:01:36.9]} 1-0

[Event "*** Titled Tuesday Blitz"]
[Site "Chess.com"]
[Date "2020.04.07"]
[Round "5"]
[White "Treacherous_horse64"]
[Black "stasiek18"]
[Result "1/2-1/2"]
[WhiteElo "2184"]
[BlackElo "2404"]
[TimeControl "180+1"]
[EndTime "13:52:58 PDT"]
[Termination "Game drawn by agreement"]

1. Nf3 {[%clk 0:02:59.6]} 1... b6 {[%clk 0:03:00.1]} 2. d4 {[%clk 0:02:56]} 2...
Bb7 {[%clk 0:03:01]} 3. e3 {[%clk 0:02:52.4]} 3... e6 {[%clk 0:02:58.2]} 4. Bd3
{[%clk 0:02:50.3]} 4... g6 {[%clk 0:02:57.2]} 5. Nbd2 {[%clk 0:02:49.2]} 5...
Bg7 {[%clk 0:02:56.8]} 6. O-O {[%clk 0:02:47.5]} 6... Ne7 {[%clk 0:02:57]} 7. b3
{[%clk 0:02:45.5]} 7... d6 {[%clk 0:02:55.9]} 8. Bb2 {[%clk 0:02:45]} 8... Nd7
{[%clk 0:02:56.1]} 9. Qe2 {[%clk 0:02:37.8]} 9... a6 {[%clk 0:02:55.7]} 10. c4
{[%clk 0:02:32]} 10... h6 {[%clk 0:02:55]} 11. h4 {[%clk 0:02:28.9]} 11... c5
{[%clk 0:02:49.2]} 12. Rfd1 {[%clk 0:02:19.9]} 12... Qc7 {[%clk 0:02:48.8]} 13.
Be4 {[%clk 0:02:10.2]} 13... Bxe4 {[%clk 0:02:31.8]} 14. Nxe4 {[%clk 0:02:11.1]}
14... cxd4 {[%clk 0:02:28.8]} 15. Bxd4 {[%clk 0:02:08.8]} 15... Bxd4 {[%clk
0:02:13.5]} 16. Rxd4 {[%clk 0:02:09.7]} 16... Nf5 {[%clk 0:02:13.4]} 17. Rd2
{[%clk 0:02:06.6]} 17... Nc5 {[%clk 0:02:10.8]} 18. Nxc5 {[%clk 0:01:55.4]}
18... dxc5 {[%clk 0:02:06.6]} 19. Rad1 {[%clk 0:01:55.1]} 1/2-1/2

[Event "*** Titled Tuesday Blitz"]
[Site "Chess.com"]
[Date "2020.04.07"]
[Round "5"]
[White "Obito24"]
[Black "MacDaddyMac"]
[Result "1-0"]
[WhiteElo "2737"]
[BlackElo "2299"]
[TimeControl "180+1"]
[EndTime "13:53:00 PDT"]
[Termination "Obito24 won by resignation"]

1. d4 {[%clk 0:03:00.9]} 1... Nf6 {[%clk 0:02:59.1]} 2. c4 {[%clk 0:03:00.7]}
2... e6 {[%clk 0:02:59.5]} 3. Nf3 {[%clk 0:03:00.3]} 3... b6 {[%clk 0:02:59]} 4.
g3 {[%clk 0:03:00]} 4... Bb7 {[%clk 0:02:59.6]} 5. Bg2 {[%clk 0:02:59.2]} 5...
Be7 {[%clk 0:03:00.3]} 6. O-O {[%clk 0:02:59.6]} 6... O-O {[%clk 0:03:00.9]} 7.
Nc3 {[%clk 0:02:58.1]} 7... Ne4 {[%clk 0:03:01.4]} 8. Bd2 {[%clk 0:02:58.5]}
8... Nxd2 {[%clk 0:03:00.7]} 9. Qxd2 {[%clk 0:02:56.1]} 9... d6 {[%clk
0:03:00.5]} 10. d5 {[%clk 0:02:55.1]} 10... e5 {[%clk 0:03:00.4]} 11. e4 {[%clk
0:02:54.8]} 11... f5 {[%clk 0:03:00.1]} 12. exf5 {[%clk 0:02:52.3]} 12... Rxf5
{[%clk 0:03:00]} 13. Qe2 {[%clk 0:02:30.2]} 13... Nd7 {[%clk 0:02:48.8]} 14. Bh3
{[%clk 0:02:26]} 14... Rf7 {[%clk 0:02:48.5]} 15. Be6 {[%clk 0:02:24.6]} 15...
Nc5 {[%clk 0:02:48.7]} 16. Bxf7+ {[%clk 0:02:22.4]} 16... Kxf7 {[%clk
0:02:49.6]} 17. b4 {[%clk 0:02:21.2]} 17... Nd7 {[%clk 0:02:48.2]} 18. Nd2
{[%clk 0:02:14.2]} 18... Kg8 {[%clk 0:02:45.5]} 19. Nde4 {[%clk 0:02:11.1]}
19... Nf6 {[%clk 0:02:44.7]} 20. f4 {[%clk 0:01:28.2]} 20... exf4 {[%clk
0:02:34.2]} 21. Rxf4 {[%clk 0:01:18.1]} 21... a5 {[%clk 0:02:33.6]} 22. bxa5
{[%clk 0:01:09.4]} 22... Rxa5 {[%clk 0:02:30.3]} 23. Ng5 {[%clk 0:01:00]} 23...
Nxd5 {[%clk 0:02:10]} 24. Qe6+ {[%clk 0:00:57.3]} 1-0

[Event "*** Titled Tuesday Blitz"]
[Site "Chess.com"]
[Date "2020.04.07"]
[Round "5"]
[White "Slovak_fighter2000"]
[Black "SamuelGhimpu2003"]
[Result "1/2-1/2"]
[WhiteElo "2490"]
[BlackElo "2679"]
[TimeControl "180+1"]
[EndTime "13:53:08 PDT"]
[Termination "Game drawn by agreement"]

1. d4 {[%clk 0:03:00.9]} 1... Nf6 {[%clk 0:02:59.2]} 2. Nf3 {[%clk 0:02:58.2]}
2... g6 {[%clk 0:02:58.1]} 3. c4 {[%clk 0:02:57.2]} 3... Bg7 {[%clk 0:02:58.4]}
4. Nc3 {[%clk 0:02:57.4]} 4... d5 {[%clk 0:02:58]} 5. Bg5 {[%clk 0:02:56.3]}
5... Ne4 {[%clk 0:02:56]} 6. cxd5 {[%clk 0:02:56.4]} 6... Nxg5 {[%clk
0:02:55.4]} 7. Nxg5 {[%clk 0:02:57.3]} 7... e6 {[%clk 0:02:56.3]} 8. Qd2 {[%clk
0:02:56.9]} 8... exd5 {[%clk 0:02:56.7]} 9. Qe3+ {[%clk 0:02:56.8]} 9... Kf8
{[%clk 0:02:57.2]} 10. Qf4 {[%clk 0:02:57.3]} 10... Bf6 {[%clk 0:02:57.5]} 11.
h4 {[%clk 0:02:57.5]} 11... h6 {[%clk 0:02:31.9]} 12. Nf3 {[%clk 0:02:56.2]}
12... Kg7 {[%clk 0:02:29.5]} 13. e3 {[%clk 0:02:55.7]} 13... Be6 {[%clk
0:02:26.4]} 14. Bd3 {[%clk 0:02:54]} 14... c5 {[%clk 0:02:24]} 15. dxc5 {[%clk
0:02:46.2]} 15... Nd7 {[%clk 0:02:24.2]} 16. O-O {[%clk 0:02:30.2]} 16... Nxc5
{[%clk 0:02:22.5]} 17. Bc2 {[%clk 0:02:20.9]} 17... Qb6 {[%clk 0:02:18.6]} 18.
Rab1 {[%clk 0:02:15.4]} 18... Rad8 {[%clk 0:02:12.9]} 19. Rfd1 {[%clk
0:02:11.2]} 19... Rhe8 {[%clk 0:02:03.9]} 20. Nd4 {[%clk 0:02:09.8]} 20... h5
{[%clk 0:01:57.5]} 21. b4 {[%clk 0:01:56.6]} 21... Nd7 {[%clk 0:01:50.1]} 22.
Na4 {[%clk 0:01:50.8]} 22... Qa6 {[%clk 0:01:46.8]} 23. Nc5 {[%clk 0:01:42.3]}
23... Nxc5 {[%clk 0:01:45.2]} 24. bxc5 {[%clk 0:01:43.2]} 24... Bd7 {[%clk
0:01:39]} 25. Bd3 {[%clk 0:01:40.5]} 25... Qa4 {[%clk 0:01:35.1]} 1/2-1/2

[Event "*** Titled Tuesday Blitz"]
[Site "Chess.com"]
[Date "2020.04.07"]
[Round "5"]
[White "theprosecution1"]
[Black "Anna_ChessMate"]
[Result "1-0"]
[WhiteElo "2810"]
[BlackElo "2617"]
[TimeControl "180+1"]
[EndTime "13:53:17 PDT"]
[Termination "theprosecution1 won by resignation"]

1. e4 {[%clk 0:03:00.9]} 1... e5 {[%clk 0:02:59]} 2. Nf3 {[%clk 0:02:59.3]} 2...
Nc6 {[%clk 0:02:59.4]} 3. Nc3 {[%clk 0:02:59.9]} 3... Nf6 {[%clk 0:02:58.6]} 4.
Bb5 {[%clk 0:02:59.5]} 4... Nd4 {[%clk 0:02:58.1]} 5. Bc4 {[%clk 0:02:58.6]}
5... c6 {[%clk 0:02:57.6]} 6. O-O {[%clk 0:02:49.4]} 6... d5 {[%clk 0:02:56.5]}
7. exd5 {[%clk 0:02:40.4]} 7... Bg4 {[%clk 0:02:56.5]} 8. Be2 {[%clk 0:02:35.5]}
8... Nxf3+ {[%clk 0:02:49.4]} 9. Bxf3 {[%clk 0:02:35.3]} 9... Bxf3 {[%clk
0:02:49.6]} 10. Qxf3 {[%clk 0:02:36.2]} 10... cxd5 {[%clk 0:02:50.2]} 11. Re1
{[%clk 0:02:34.3]} 11... Bd6 {[%clk 0:02:48.6]} 12. Nxd5 {[%clk 0:02:34.6]}
12... Nxd5 {[%clk 0:02:44]} 13. Qxd5 {[%clk 0:02:35.5]} 13... O-O {[%clk
0:02:42.9]} 14. d3 {[%clk 0:02:35.7]} 14... Rc8 {[%clk 0:02:40.4]} 15. c3 {[%clk
0:02:35.1]} 15... Qb6 {[%clk 0:02:31.7]} 16. Be3 {[%clk 0:02:28.9]} 16... Qa6
{[%clk 0:02:28.7]} 17. Rad1 {[%clk 0:02:22.8]} 17... Rfd8 {[%clk 0:02:27.6]} 18.
Qb3 {[%clk 0:02:23]} 18... h6 {[%clk 0:02:24.3]} 19. g3 {[%clk 0:02:21.1]} 19...
Be7 {[%clk 0:02:22]} 20. a4 {[%clk 0:02:16.2]} 20... Bf6 {[%clk 0:02:18.7]} 21.
Qb5 {[%clk 0:02:07.3]} 21... Qe6 {[%clk 0:02:14.9]} 22. Qxb7 {[%clk 0:02:00.9]}
22... Rb8 {[%clk 0:02:14.1]} 23. Qxa7 {[%clk 0:02:01.1]} 23... Rxb2 {[%clk
0:02:14.2]} 24. a5 {[%clk 0:01:59.3]} 24... Qf5 {[%clk 0:02:08.7]} 25. a6 {[%clk
0:01:49.3]} 25... Ra2 {[%clk 0:02:05.6]} 26. Qb7 {[%clk 0:01:45.6]} 26... Bg5
{[%clk 0:01:53.4]} 27. Bb6 {[%clk 0:01:45]} 27... Rxd3 {[%clk 0:01:42.2]} 28.
Rxd3 {[%clk 0:01:40.6]} 28... Qxd3 {[%clk 0:01:43.1]} 29. a7 {[%clk 0:01:40.3]}
29... Qa6 {[%clk 0:01:40.6]} 30. Qxa6 {[%clk 0:01:36.6]} 30... Rxa6 {[%clk
0:01:41.5]} 31. Rxe5 {[%clk 0:01:36]} 1-0

[Event "*** Titled Tuesday Blitz"]
[Site "Chess.com"]
[Date "2020.04.07"]
[Round "5"]
[White "INLOVEWITHF"]
[Black "Vusatiuk_Vladimir"]
[Result "1-0"]
[WhiteElo "2547"]
[BlackElo "2375"]
[TimeControl "180+1"]
[EndTime "13:53:17 PDT"]
[Termination "INLOVEWITHF won by resignation"]

1. e4 {[%clk 0:03:00.9]} 1... c5 {[%clk 0:03:00.1]} 2. Nf3 {[%clk 0:02:59.4]}
2... Nc6 {[%clk 0:03:00.5]} 3. d4 {[%clk 0:02:59.5]} 3... cxd4 {[%clk
0:03:01.4]} 4. Nxd4 {[%clk 0:03:00.3]} 4... e5 {[%clk 0:03:01.3]} 5. Nb5 {[%clk
0:03:00.6]} 5... d6 {[%clk 0:03:01.6]} 6. N1c3 {[%clk 0:02:58.4]} 6... a6 {[%clk
0:03:01.8]} 7. Na3 {[%clk 0:02:58.5]} 7... b5 {[%clk 0:03:02.4]} 8. Nd5 {[%clk
0:02:49.8]} 8... Nf6 {[%clk 0:03:02.2]} 9. Bg5 {[%clk 0:02:46.2]} 9... Be7
{[%clk 0:03:02]} 10. Bxf6 {[%clk 0:02:43.6]} 10... Bxf6 {[%clk 0:03:02.1]} 11.
c3 {[%clk 0:02:43.8]} 11... O-O {[%clk 0:03:00.5]} 12. Nc2 {[%clk 0:02:41.9]}
12... Rb8 {[%clk 0:03:00.9]} 13. h4 {[%clk 0:02:37.5]} 13... Be6 {[%clk
0:02:52.1]} 14. Nxf6+ {[%clk 0:02:33.2]} 14... Qxf6 {[%clk 0:02:31.2]} 15. Qxd6
{[%clk 0:02:33.1]} 15... Na5 {[%clk 0:02:29.6]} 16. Qxa6 {[%clk 0:02:22.2]}
16... Nc4 {[%clk 0:02:28.3]} 17. Bxc4 {[%clk 0:02:16.9]} 17... bxc4 {[%clk
0:02:26.7]} 18. Nb4 {[%clk 0:02:17.3]} 18... Qf4 {[%clk 0:02:26.1]} 19. O-O
{[%clk 0:02:11.2]} 19... Qxe4 {[%clk 0:02:24.3]} 20. Rae1 {[%clk 0:02:10.2]}
20... Qf4 {[%clk 0:02:12.4]} 21. Qd6 {[%clk 0:02:03.9]} 21... Rfd8 {[%clk
0:01:47.8]} 22. Qxe5 {[%clk 0:01:56.8]} 22... Qxh4 {[%clk 0:01:48.2]} 23. Nc6
{[%clk 0:01:41.2]} 23... Rxb2 {[%clk 0:01:41.3]} 24. g3 {[%clk 0:01:35.6]} 1-0

[Event "*** Titled Tuesday Blitz"]
[Site "Chess.com"]
[Date "2020.04.07"]
[Round "5"]
[White "tomsishere"]
[Black "Sn00pPawn"]
[Result "1-0"]
[WhiteElo "2202"]
[BlackElo "1840"]
[TimeControl "180+1"]
[EndTime "13:53:18 PDT"]
[Termination "tomsishere won by resignation"]

1. d4 {[%clk 0:03:00.9]} 1... Nf6 {[%clk 0:02:59.6]} 2. c4 {[%clk 0:03:01.1]}
2... g6 {[%clk 0:02:59.9]} 3. Nc3 {[%clk 0:03:00.7]} 3... Bg7 {[%clk 0:03:00.3]}
4. e4 {[%clk 0:03:00.4]} 4... d6 {[%clk 0:03:00.8]} 5. Nge2 {[%clk 0:03:00.6]}
5... O-O {[%clk 0:03:01.2]} 6. Ng3 {[%clk 0:03:00.8]} 6... e5 {[%clk 0:02:59]}
7. d5 {[%clk 0:03:00.8]} 7... h5 {[%clk 0:02:59.4]} 8. Bg5 {[%clk 0:02:56.5]}
8... Qe8 {[%clk 0:02:52.6]} 9. Nb5 {[%clk 0:02:53.7]} 9... Na6 {[%clk
0:02:51.3]} 10. Be2 {[%clk 0:02:50.8]} 10... Bd7 {[%clk 0:02:50.8]} 11. Nc3
{[%clk 0:02:44.7]} 11... Nh7 {[%clk 0:02:36.4]} 12. Be3 {[%clk 0:02:43.6]} 12...
f5 {[%clk 0:02:33.7]} 13. exf5 {[%clk 0:02:43]} 13... gxf5 {[%clk 0:02:32.5]}
14. Nxh5 {[%clk 0:02:41.2]} 14... f4 {[%clk 0:02:22.5]} 15. Nxg7 {[%clk
0:02:40]} 15... Kxg7 {[%clk 0:02:20.4]} 16. Bd2 {[%clk 0:02:40.3]} 16... Bf5
{[%clk 0:02:15]} 17. g4 {[%clk 0:02:24.8]} 17... Bg6 {[%clk 0:02:08.9]} 18. h4
{[%clk 0:02:21]} 18... Nf6 {[%clk 0:02:01]} 19. h5 {[%clk 0:02:19.5]} 19... Bh7
{[%clk 0:01:39.2]} 20. g5 {[%clk 0:02:19.2]} 20... Ne4 {[%clk 0:01:14.6]} 21. g6
{[%clk 0:02:18]} 21... Nxc3 {[%clk 0:01:12.1]} 22. Bxc3 {[%clk 0:02:16.8]} 22...
Bg8 {[%clk 0:01:09]} 23. h6+ {[%clk 0:02:16.7]} 23... Kf6 {[%clk 0:00:55.1]} 24.
g7 {[%clk 0:02:17.6]} 24... Rf7 {[%clk 0:00:45.6]} 25. h7 {[%clk 0:02:17.3]}
25... Rxg7 {[%clk 0:00:43.8]} 26. h8=Q {[%clk 0:02:14.7]} 1-0

[Event "*** Titled Tuesday Blitz"]
[Site "Chess.com"]
[Date "2020.04.07"]
[Round "5"]
[White "JiangoFett"]
[Black "Charlottemillard17"]
[Result "1-0"]
[WhiteElo "2300"]
[BlackElo "1319"]
[TimeControl "180+1"]
[EndTime "13:53:20 PDT"]
[Termination "JiangoFett won by resignation"]

1. d4 {[%clk 0:03:00.9]} 1... d5 {[%clk 0:02:58.3]} 2. c4 {[%clk 0:03:00.4]}
2... Nf6 {[%clk 0:02:55.5]} 3. cxd5 {[%clk 0:03:00.4]} 3... Nxd5 {[%clk
0:02:54.3]} 4. e4 {[%clk 0:03:00.6]} 4... Nf6 {[%clk 0:02:52]} 5. Nc3 {[%clk
0:03:00.9]} 5... Nc6 {[%clk 0:02:48.5]} 6. Nf3 {[%clk 0:02:59.2]} 6... Bg4
{[%clk 0:02:46.6]} 7. d5 {[%clk 0:02:59.6]} 7... Ne5 {[%clk 0:02:43.7]} 8. Bb5+
{[%clk 0:02:51.8]} 8... c6 {[%clk 0:02:37.4]} 9. Nxe5 {[%clk 0:02:25.5]} 9...
Bxd1 {[%clk 0:02:17.5]} 10. dxc6 {[%clk 0:02:24.7]} 10... bxc6 {[%clk
0:01:54.9]} 11. Bxc6+ {[%clk 0:02:25.6]} 11... Nd7 {[%clk 0:01:54.6]} 12. Bxd7+
{[%clk 0:02:22]} 12... Qxd7 {[%clk 0:01:53.6]} 13. Nxd7 {[%clk 0:02:22.9]} 13...
Kxd7 {[%clk 0:01:52.8]} 14. Kxd1 {[%clk 0:02:21.4]} 14... e5 {[%clk 0:01:50.8]}
15. Kc2 {[%clk 0:02:18.4]} 15... f6 {[%clk 0:01:48.7]} 16. Be3 {[%clk 0:02:16]}
16... Bb4 {[%clk 0:01:43.9]} 17. Rhd1+ {[%clk 0:02:14.1]} 17... Ke7 {[%clk
0:01:41.2]} 18. Nd5+ {[%clk 0:02:13.8]} 18... Ke6 {[%clk 0:01:37.5]} 19. Nxb4
{[%clk 0:02:14.7]} 19... Rac8+ {[%clk 0:01:36.4]} 20. Kd2 {[%clk 0:02:13.4]}
20... Rhd8+ {[%clk 0:01:35.7]} 21. Ke2 {[%clk 0:02:13.5]} 21... Rxd1 {[%clk
0:01:33.7]} 22. Rxd1 {[%clk 0:02:13.1]} 22... Rc4 {[%clk 0:01:34.2]} 23. Nd5
{[%clk 0:02:01.5]} 23... Rxe4 {[%clk 0:01:32.1]} 24. Nc3 {[%clk 0:01:56.1]}
24... Rb4 {[%clk 0:01:30.3]} 25. b3 {[%clk 0:01:55.7]} 25... Rb7 {[%clk
0:01:28.3]} 26. Ne4 {[%clk 0:01:53]} 26... f5 {[%clk 0:01:22.1]} 27. Nc5+ {[%clk
0:01:53]} 27... Kf6 {[%clk 0:01:17.9]} 28. Nxb7 {[%clk 0:01:53.9]} 28... Kg6
{[%clk 0:01:15.6]} 29. Bxa7 {[%clk 0:01:54.8]} 1-0

[Event "*** Titled Tuesday Blitz"]
[Site "Chess.com"]
[Date "2020.04.07"]
[Round "5"]
[White "TheBigBoss04"]
[Black "IMJonathanCarlstedt"]
[Result "1-0"]
[WhiteElo "2780"]
[BlackElo "2466"]
[TimeControl "180+1"]
[EndTime "13:53:21 PDT"]
[Termination "TheBigBoss04 won by resignation"]

1. g3 {[%clk 0:03:00.9]} 1... g6 {[%clk 0:02:59.7]} 2. Bg2 {[%clk 0:03:01.8]}
2... Bg7 {[%clk 0:02:59.9]} 3. Nf3 {[%clk 0:03:02.7]} 3... d6 {[%clk 0:03:00]}
4. O-O {[%clk 0:03:03.6]} 4... c5 {[%clk 0:02:52.9]} 5. d4 {[%clk 0:03:04]} 5...
cxd4 {[%clk 0:02:52]} 6. Nxd4 {[%clk 0:03:04.9]} 6... Nf6 {[%clk 0:02:52]} 7. c4
{[%clk 0:03:05.4]} 7... O-O {[%clk 0:02:51.4]} 8. Nc3 {[%clk 0:03:06.3]} 8...
Nbd7 {[%clk 0:02:50]} 9. e4 {[%clk 0:03:05.7]} 9... a6 {[%clk 0:02:45.4]} 10. h3
{[%clk 0:03:04.6]} 10... Ne5 {[%clk 0:02:40.3]} 11. b3 {[%clk 0:03:04.4]} 11...
Bd7 {[%clk 0:02:40.9]} 12. Bb2 {[%clk 0:03:03.9]} 12... Rc8 {[%clk 0:02:37.4]}
13. Rc1 {[%clk 0:03:02.8]} 13... Bc6 {[%clk 0:02:25.7]} 14. f4 {[%clk 0:03:01]}
14... Ned7 {[%clk 0:02:25.7]} 15. Nxc6 {[%clk 0:03:00]} 15... bxc6 {[%clk
0:02:22.5]} 16. Kh2 {[%clk 0:02:59.4]} 16... Qc7 {[%clk 0:02:16.8]} 17. Qd2
{[%clk 0:02:58.5]} 17... Rfd8 {[%clk 0:02:14.4]} 18. Rfe1 {[%clk 0:02:59.1]}
18... e5 {[%clk 0:02:11]} 19. f5 {[%clk 0:02:58.8]} 19... c5 {[%clk 0:02:02.2]}
20. g4 {[%clk 0:02:58.7]} 20... h6 {[%clk 0:01:57.8]} 21. Kg3 {[%clk 0:02:55.4]}
21... Nb8 {[%clk 0:01:56.9]} 22. h4 {[%clk 0:02:55]} 22... Nc6 {[%clk
0:01:55.6]} 23. g5 {[%clk 0:02:55.4]} 23... Nh5+ {[%clk 0:01:55.8]} 24. Kh2
{[%clk 0:02:55.6]} 24... Nf4 {[%clk 0:01:53.8]} 25. f6 {[%clk 0:02:55.5]} 25...
Bf8 {[%clk 0:01:53]} 26. Nd5 {[%clk 0:02:55.5]} 26... Nxd5 {[%clk 0:01:43.4]}
27. exd5 {[%clk 0:02:56.1]} 27... Nd4 {[%clk 0:01:26.1]} 28. Be4 {[%clk
0:02:55.3]} 28... Qd7 {[%clk 0:01:21.8]} 29. Rg1 {[%clk 0:02:55.1]} 29... h5
{[%clk 0:01:21.3]} 30. Qd3 {[%clk 0:02:54.2]} 30... Kh7 {[%clk 0:01:17.5]} 31.
Qd1 {[%clk 0:02:53.7]} 31... Kg8 {[%clk 0:01:11.4]} 32. Rf1 {[%clk 0:02:52.9]}
32... Re8 {[%clk 0:01:04.4]} 33. Bc3 {[%clk 0:02:52.9]} 33... Kh8 {[%clk
0:00:55.2]} 34. Rg1 {[%clk 0:02:51.2]} 34... Nf5 {[%clk 0:00:51.7]} 35. Qd3
{[%clk 0:02:47]} 35... Nxh4 {[%clk 0:00:50]} 36. Rcf1 {[%clk 0:02:47]} 36... a5
{[%clk 0:00:41.4]} 37. Be1 {[%clk 0:02:47]} 37... Nf5 {[%clk 0:00:40.7]} 38.
Rxf5 {[%clk 0:02:46.9]} 38... gxf5 {[%clk 0:00:40.1]} 39. Bxf5 {[%clk
0:02:47.6]} 39... Qa7 {[%clk 0:00:38.7]} 40. Qh3 {[%clk 0:02:47.8]} 1-0

[Event "*** Titled Tuesday Blitz"]
[Site "Chess.com"]
[Date "2020.04.07"]
[Round "5"]
[White "Elshan1985"]
[Black "AliMentor20"]
[Result "1-0"]
[WhiteElo "2697"]
[BlackElo "2406"]
[TimeControl "180+1"]
[EndTime "13:53:25 PDT"]
[Termination "Elshan1985 won by checkmate"]

1. d4 {[%clk 0:03:00.9]} 1... d5 {[%clk 0:02:54.2]} 2. c4 {[%clk 0:02:56.6]}
2... e6 {[%clk 0:02:52.9]} 3. Nf3 {[%clk 0:02:56.2]} 3... c6 {[%clk 0:02:52.6]}
4. Bg5 {[%clk 0:02:55.3]} 4... Qa5+ {[%clk 0:02:48]} 5. Nbd2 {[%clk 0:02:49.9]}
5... f5 {[%clk 0:02:42]} 6. e3 {[%clk 0:02:45.9]} 6... Nd7 {[%clk 0:02:34]} 7.
a3 {[%clk 0:02:44.3]} 7... Ngf6 {[%clk 0:02:32.9]} 8. b4 {[%clk 0:02:44.1]} 8...
Qc7 {[%clk 0:02:31.8]} 9. Bd3 {[%clk 0:02:38.5]} 9... g6 {[%clk 0:02:16.7]} 10.
Qb3 {[%clk 0:02:25.2]} 10... Bd6 {[%clk 0:02:07.5]} 11. c5 {[%clk 0:02:24.4]}
11... Be7 {[%clk 0:02:06.5]} 12. Bf4 {[%clk 0:02:24.7]} 12... Qd8 {[%clk
0:02:06.2]} 13. h3 {[%clk 0:02:24.6]} 13... h5 {[%clk 0:01:59.6]} 14. b5 {[%clk
0:02:18.8]} 14... Ne4 {[%clk 0:01:50.8]} 15. Bxe4 {[%clk 0:02:18.8]} 15... fxe4
{[%clk 0:01:49.7]} 16. Ne5 {[%clk 0:02:19]} 16... Nxe5 {[%clk 0:01:44.4]} 17.
Bxe5 {[%clk 0:02:19.3]} 17... O-O {[%clk 0:01:44.4]} 18. O-O {[%clk 0:02:12.6]}
18... Bd7 {[%clk 0:01:43.4]} 19. a4 {[%clk 0:02:10]} 19... a6 {[%clk 0:01:43.4]}
20. bxc6 {[%clk 0:02:07]} 20... Bxc6 {[%clk 0:01:43.1]} 21. f3 {[%clk
0:02:05.8]} 21... Qa5 {[%clk 0:01:27]} 22. Nxe4 {[%clk 0:01:53.5]} 22... dxe4
{[%clk 0:01:07.8]} 23. Qxe6+ {[%clk 0:01:53]} 23... Rf7 {[%clk 0:01:08]} 24.
Qxg6+ {[%clk 0:01:53]} 24... Kf8 {[%clk 0:01:07.7]} 25. fxe4 {[%clk 0:01:53.4]}
25... Be8 {[%clk 0:00:52.6]} 26. Qg7# {[%clk 0:01:52.5]} 1-0

[Event "*** Titled Tuesday Blitz"]
[Site "Chess.com"]
[Date "2020.04.07"]
[Round "5"]
[White "Azeryahu"]
[Black "NIGWAPO"]
[Result "1-0"]
[WhiteElo "2860"]
[BlackElo "2589"]
[TimeControl "180+1"]
[EndTime "13:53:34 PDT"]
[Termination "Azeryahu won by resignation"]

1. g3 {[%clk 0:03:00.9]} 1... d5 {[%clk 0:02:53.1]} 2. Nf3 {[%clk 0:02:59.7]}
2... Nf6 {[%clk 0:02:53.6]} 3. Bg2 {[%clk 0:02:59.9]} 3... c6 {[%clk 0:02:54.2]}
4. O-O {[%clk 0:02:59.9]} 4... Bf5 {[%clk 0:02:54.7]} 5. d4 {[%clk 0:03:00.5]}
5... e6 {[%clk 0:02:55.1]} 6. c4 {[%clk 0:03:00.7]} 6... dxc4 {[%clk 0:02:54.6]}
7. Ne5 {[%clk 0:02:59.2]} 7... Nbd7 {[%clk 0:02:52.7]} 8. Nxc4 {[%clk
0:02:58.8]} 8... Nb6 {[%clk 0:02:51.7]} 9. Ne5 {[%clk 0:02:58.4]} 9... Bd6
{[%clk 0:02:51.3]} 10. Nc3 {[%clk 0:02:55.3]} 10... Bxe5 {[%clk 0:02:50]} 11.
dxe5 {[%clk 0:02:55.2]} 11... Qxd1 {[%clk 0:02:50.5]} 12. Rxd1 {[%clk 0:02:56]}
12... Nfd5 {[%clk 0:02:50.4]} 13. e4 {[%clk 0:02:46.3]} 13... Nxc3 {[%clk
0:02:49.5]} 14. bxc3 {[%clk 0:02:47.2]} 14... Bg6 {[%clk 0:02:41.6]} 15. f3
{[%clk 0:02:27.4]} 15... Rd8 {[%clk 0:02:37.5]} 16. Bg5 {[%clk 0:02:19.1]} 16...
Rd7 {[%clk 0:02:37.4]} 17. Bf1 {[%clk 0:02:08.6]} 17... h6 {[%clk 0:02:35.8]}
18. Be3 {[%clk 0:02:08.1]} 18... Kd8 {[%clk 0:02:30.1]} 19. a4 {[%clk
0:02:03.1]} 19... Kc7 {[%clk 0:02:29.7]} 20. a5 {[%clk 0:02:03]} 20... Nc8
{[%clk 0:02:29.4]} 21. Rxd7+ {[%clk 0:01:54.9]} 21... Kxd7 {[%clk 0:02:29.1]}
22. Kf2 {[%clk 0:01:42.6]} 22... Kc7 {[%clk 0:02:28.1]} 23. Bc4 {[%clk
0:01:42.1]} 23... Rd8 {[%clk 0:02:28.2]} 24. g4 {[%clk 0:01:39.3]} 24... b5
{[%clk 0:02:21.7]} 25. axb6+ {[%clk 0:01:34.2]} 25... axb6 {[%clk 0:02:21.4]}
26. Be2 {[%clk 0:01:33.2]} 26... c5 {[%clk 0:02:17.1]} 27. Ra4 {[%clk
0:01:20.2]} 27... Kb7 {[%clk 0:02:08.1]} 28. f4 {[%clk 0:01:18.5]} 28... f6
{[%clk 0:02:06.7]} 29. exf6 {[%clk 0:01:15.7]} 29... gxf6 {[%clk 0:02:06.5]} 30.
f5 {[%clk 0:01:16.6]} 30... exf5 {[%clk 0:02:04.4]} 31. exf5 {[%clk 0:01:16.3]}
31... Be8 {[%clk 0:02:04.1]} 32. Bf3+ {[%clk 0:01:16.5]} 32... Kc7 {[%clk
0:01:58.2]} 33. Bf4+ {[%clk 0:01:16.4]} 33... Nd6 {[%clk 0:01:47.3]} 34. Ra7+
{[%clk 0:01:14.8]} 34... Kc8 {[%clk 0:01:45]} 35. Ra8+ {[%clk 0:01:14.9]} 35...
Kc7 {[%clk 0:01:42.7]} 36. Rxd8 {[%clk 0:01:15.8]} 1-0